[Event "*** Titled Tuesday Blitz"]
[Site "Chess.com"]
[Date "2020.05.05"]
[Round "3"]
[White "AvitalBor"]
[Black "Witik"]
[Result "1-0"]
[WhiteElo "2834"]
[BlackElo "2615"]
[TimeControl "180+1"]
[EndTime "10:29:55 PDT"]
[Termination "AvitalBor won by checkmate"]

1. Nf3 {[%clk 0:03:00.9]} 1... Nf6 {[%clk 0:02:56.7]} 2. g3 {[%clk 0:03:00.9]}
2... d5 {[%clk 0:02:56.3]} 3. Bg2 {[%clk 0:03:01.3]} 3... c6 {[%clk 0:02:56.9]}
4. O-O {[%clk 0:03:01.1]} 4... Bg4 {[%clk 0:02:57.4]} 5. d4 {[%clk 0:03:01.2]}
5... Nbd7 {[%clk 0:02:57.3]} 6. Nbd2 {[%clk 0:03:01.8]} 6... e6 {[%clk
0:02:57.2]} 7. Re1 {[%clk 0:03:02.3]} 7... Be7 {[%clk 0:02:57.6]} 8. e4 {[%clk
0:03:02.9]} 8... O-O {[%clk 0:02:58]} 9. c3 {[%clk 0:03:02.9]} 9... a5 {[%clk
0:02:52.6]} 10. h3 {[%clk 0:03:01.7]} 10... Bh5 {[%clk 0:02:52.2]} 11. e5 {[%clk
0:02:52]} 11... Ne8 {[%clk 0:02:51.2]} 12. Nf1 {[%clk 0:02:52.6]} 12... a4
{[%clk 0:02:37.6]} 13. g4 {[%clk 0:02:50.7]} 13... Bg6 {[%clk 0:02:37.1]} 14.
Ng3 {[%clk 0:02:50.4]} 14... Nc7 {[%clk 0:02:33]} 15. g5 {[%clk 0:02:32.8]}
15... a3 {[%clk 0:02:26.3]} 16. b3 {[%clk 0:02:28.5]} 16... c5 {[%clk 0:02:22]}
17. h4 {[%clk 0:02:27.2]} 17... Nb5 {[%clk 0:02:07.3]} 18. h5 {[%clk 0:01:29.4]}
18... Be4 {[%clk 0:02:06.6]} 19. Nxe4 {[%clk 0:00:54.1]} 19... dxe4 {[%clk
0:02:06.6]} 20. Nd2 {[%clk 0:00:54.2]} 20... Nxc3 {[%clk 0:01:52.4]} 21. Qg4
{[%clk 0:00:50.1]} 21... cxd4 {[%clk 0:01:51.1]} 22. Nxe4 {[%clk 0:00:49.8]}
22... Nxe5 {[%clk 0:01:49]} 23. Qg3 {[%clk 0:00:49.5]} 23... Nc6 {[%clk
0:01:02.1]} 24. Nxc3 {[%clk 0:00:49.2]} 24... dxc3 {[%clk 0:01:02]} 25. h6
{[%clk 0:00:49.4]} 25... Ra5 {[%clk 0:00:24.4]} 26. hxg7 {[%clk 0:00:19.8]}
26... Re8 {[%clk 0:00:21.6]} 27. Qxc3 {[%clk 0:00:13.9]} 27... Bxg5 {[%clk
0:00:19.2]} 28. Be3 {[%clk 0:00:13.4]} 28... Qf6 {[%clk 0:00:13.6]} 29. Qxf6
{[%clk 0:00:05.4]} 29... Bxf6 {[%clk 0:00:13.8]} 30. Rac1 {[%clk 0:00:06.1]}
30... Nb4 {[%clk 0:00:14]} 31. Rc7 {[%clk 0:00:05.3]} 31... Kxg7 {[%clk
0:00:13.5]} 32. Rxb7 {[%clk 0:00:05.5]} 32... Nxa2 {[%clk 0:00:14]} 33. Be4
{[%clk 0:00:05.4]} 33... Nc3 {[%clk 0:00:13.4]} 34. Bd3 {[%clk 0:00:05.6]} 34...
a2 {[%clk 0:00:13.6]} 35. Kh2 {[%clk 0:00:03.5]} 35... Nd5 {[%clk 0:00:11.3]}
36. Rg1+ {[%clk 0:00:03.5]} 36... Kh8 {[%clk 0:00:08.4]} 37. Rxf7 {[%clk
0:00:03.2]} 37... Be5+ {[%clk 0:00:08.5]} 38. Kh1 {[%clk 0:00:02.9]} 38... Nf6
{[%clk 0:00:06]} 39. Bg5 {[%clk 0:00:03.1]} 39... a1=Q {[%clk 0:00:05.8]} 40.
Bxf6+ {[%clk 0:00:03.1]} 40... Bxf6 {[%clk 0:00:03.1]} 41. Rxh7# {[%clk
0:00:04]} 1-0

[Event "*** Titled Tuesday Blitz"]
[Site "Chess.com"]
[Date "2020.05.05"]
[Round "3"]
[White "nubair1198"]
[Black "bilelou"]
[Result "1-0"]
[WhiteElo "2760"]
[BlackElo "2505"]
[TimeControl "180+1"]
[EndTime "10:29:55 PDT"]
[Termination "nubair1198 won by resignation"]

1. d4 {[%clk 0:03:00.9]} 1... Nf6 {[%clk 0:02:56.4]} 2. c4 {[%clk 0:03:01.3]}
2... e6 {[%clk 0:02:56.3]} 3. Nc3 {[%clk 0:03:01.9]} 3... Bb4 {[%clk 0:02:55.7]}
4. e3 {[%clk 0:03:02.2]} 4... O-O {[%clk 0:02:54.8]} 5. Ne2 {[%clk 0:03:02.7]}
5... d5 {[%clk 0:02:54.5]} 6. a3 {[%clk 0:03:02.7]} 6... Bd6 {[%clk 0:02:54.8]}
7. Ng3 {[%clk 0:03:02.1]} 7... b6 {[%clk 0:02:54.2]} 8. Be2 {[%clk 0:03:01.8]}
8... Bb7 {[%clk 0:02:54.3]} 9. O-O {[%clk 0:03:02.2]} 9... Re8 {[%clk
0:02:54.5]} 10. Qc2 {[%clk 0:03:00.7]} 10... a6 {[%clk 0:02:52.3]} 11. Rd1
{[%clk 0:03:00.6]} 11... Nbd7 {[%clk 0:02:51.8]} 12. b4 {[%clk 0:03:00.2]} 12...
dxc4 {[%clk 0:02:37.1]} 13. Bxc4 {[%clk 0:03:01.1]} 13... b5 {[%clk 0:02:31.3]}
14. Bb3 {[%clk 0:02:47.5]} 14... h5 {[%clk 0:02:21.2]} 15. e4 {[%clk 0:02:41.1]}
15... h4 {[%clk 0:02:20.2]} 16. Nf1 {[%clk 0:02:41]} 16... e5 {[%clk 0:02:18.1]}
17. d5 {[%clk 0:02:22.4]} 17... Nf8 {[%clk 0:02:15.9]} 18. Bg5 {[%clk 0:02:10]}
18... N8h7 {[%clk 0:02:15.5]} 19. Bxh4 {[%clk 0:02:09.8]} 19... Qd7 {[%clk
0:02:06.1]} 20. Ne3 {[%clk 0:02:08.1]} 20... g6 {[%clk 0:01:59.5]} 21. Qe2
{[%clk 0:02:06.5]} 21... Kg7 {[%clk 0:01:59.3]} 22. Qf3 {[%clk 0:02:02.4]} 22...
Nh5 {[%clk 0:01:44.9]} 23. Nf5+ {[%clk 0:01:53.1]} 23... gxf5 {[%clk 0:01:41.8]}
24. Qxh5 {[%clk 0:01:52.9]} 24... f4 {[%clk 0:01:41.5]} 25. Rd3 {[%clk
0:01:46.6]} 25... Rh8 {[%clk 0:01:30.4]} 26. Rh3 {[%clk 0:01:24.2]} 26... Rag8
{[%clk 0:01:29.1]} 27. a4 {[%clk 0:00:57.9]} 27... Nf8 {[%clk 0:01:20.1]} 28.
Qg5+ {[%clk 0:00:51]} 28... Ng6 {[%clk 0:01:14.8]} 29. Qf6+ {[%clk 0:00:17.7]}
29... Kf8 {[%clk 0:01:12.7]} 30. axb5 {[%clk 0:00:16.9]} 30... Be7 {[%clk
0:00:40.9]} 31. bxa6 {[%clk 0:00:17.2]} 31... Ba8 {[%clk 0:00:40.7]} 32. Ba4
{[%clk 0:00:05.5]} 32... Qd8 {[%clk 0:00:33.7]} 33. Qxh8 {[%clk 0:00:03.5]}
33... Rxh8 {[%clk 0:00:32.9]} 34. Bxe7+ {[%clk 0:00:03.6]} 34... Kxe7 {[%clk
0:00:32.9]} 35. Rxh8 {[%clk 0:00:03.5]} 35... Nxh8 {[%clk 0:00:25.1]} 36. Bc6
{[%clk 0:00:04.4]} 36... Bxc6 {[%clk 0:00:15.1]} 37. dxc6 {[%clk 0:00:05.3]}
37... Qd4 {[%clk 0:00:15.3]} 38. a7 {[%clk 0:00:05.2]} 38... Qxc3 {[%clk
0:00:14]} 39. a8=Q {[%clk 0:00:06]} 39... Ng6 {[%clk 0:00:14.1]} 40. Qa3 {[%clk
0:00:06.4]} 40... Qd4 {[%clk 0:00:13.5]} 41. b5+ {[%clk 0:00:06.7]} 41... Kf6
{[%clk 0:00:13.7]} 42. Re1 {[%clk 0:00:05.4]} 42... Nh4 {[%clk 0:00:13.2]} 43.
Qh3 {[%clk 0:00:05.2]} 43... Ng6 {[%clk 0:00:12.9]} 44. Qd7 {[%clk 0:00:05.3]}
44... Kg7 {[%clk 0:00:13.4]} 45. Qxd4 {[%clk 0:00:05.5]} 1-0

[Event "*** Titled Tuesday Blitz"]
[Site "Chess.com"]
[Date "2020.05.05"]
[Round "3"]
[White "Azatic"]
[Black "dianosky"]
[Result "0-1"]
[WhiteElo "2618"]
[BlackElo "2446"]
[TimeControl "180+1"]
[EndTime "10:29:55 PDT"]
[Termination "dianosky won by resignation"]

1. e4 {[%clk 0:03:00.9]} 1... c5 {[%clk 0:02:59.6]} 2. Nf3 {[%clk 0:03:01]} 2...
a6 {[%clk 0:02:58.8]} 3. c3 {[%clk 0:03:01]} 3... Qc7 {[%clk 0:02:58.8]} 4. d4
{[%clk 0:02:59.7]} 4... d6 {[%clk 0:02:59.3]} 5. Bd3 {[%clk 0:02:47.3]} 5... Bg4
{[%clk 0:02:59.1]} 6. O-O {[%clk 0:02:44.4]} 6... e5 {[%clk 0:02:59]} 7. Be3
{[%clk 0:02:36.1]} 7... Nf6 {[%clk 0:02:58.9]} 8. h3 {[%clk 0:02:35.6]} 8... Bh5
{[%clk 0:02:58.8]} 9. Nbd2 {[%clk 0:02:33.4]} 9... Be7 {[%clk 0:02:58.8]} 10. d5
{[%clk 0:02:11]} 10... O-O {[%clk 0:02:57.3]} 11. a4 {[%clk 0:02:11.2]} 11...
Nbd7 {[%clk 0:02:55.3]} 12. Re1 {[%clk 0:02:10.8]} 12... Rfe8 {[%clk 0:02:53.6]}
13. Nf1 {[%clk 0:02:10.6]} 13... c4 {[%clk 0:02:52.8]} 14. Bc2 {[%clk
0:02:08.9]} 14... Nc5 {[%clk 0:02:50.4]} 15. Ng3 {[%clk 0:02:07.1]} 15... Bg6
{[%clk 0:02:49.7]} 16. Nd2 {[%clk 0:01:47.2]} 16... b5 {[%clk 0:02:46.4]} 17. f4
{[%clk 0:01:28.7]} 17... exf4 {[%clk 0:02:44]} 18. Bxf4 {[%clk 0:01:29.6]} 18...
Nfd7 {[%clk 0:02:44.2]} 19. Qg4 {[%clk 0:01:07]} 19... Bf6 {[%clk 0:02:42.9]}
20. Nf5 {[%clk 0:00:56.6]} 20... Ne5 {[%clk 0:02:41.2]} 21. Qg3 {[%clk
0:00:52.5]} 21... Rad8 {[%clk 0:02:10.3]} 22. axb5 {[%clk 0:00:51.2]} 22... axb5
{[%clk 0:02:10.6]} 23. Kh1 {[%clk 0:00:43]} 23... Bxf5 {[%clk 0:02:08.2]} 24.
exf5 {[%clk 0:00:42.2]} 24... Ned3 {[%clk 0:02:08.6]} 25. Bxd6 {[%clk
0:00:31.5]} 25... Rxe1+ {[%clk 0:01:55.8]} 26. Rxe1 {[%clk 0:00:29.6]} 26... Qd7
{[%clk 0:01:56.3]} 27. Bxc5 {[%clk 0:00:24.9]} 27... Nxe1 {[%clk 0:01:53]} 28.
Qxe1 {[%clk 0:00:24.5]} 28... Qxd5 {[%clk 0:01:53.4]} 29. Ne4 {[%clk 0:00:24.8]}
29... Qxf5 {[%clk 0:01:47.3]} 30. Nxf6+ {[%clk 0:00:22.3]} 30... Qxf6 {[%clk
0:01:47.7]} 31. Bd4 {[%clk 0:00:20.5]} 31... Qe6 {[%clk 0:01:44.6]} 32. Qg3
{[%clk 0:00:20]} 32... g6 {[%clk 0:01:45.1]} 33. Qh4 {[%clk 0:00:19.6]} 33...
Re8 {[%clk 0:01:41.1]} 34. Qh6 {[%clk 0:00:19.4]} 34... f6 {[%clk 0:01:37.3]}
35. Qf4 {[%clk 0:00:19.1]} 35... Kg7 {[%clk 0:01:36.5]} 36. Kh2 {[%clk
0:00:11.9]} 36... Rd8 {[%clk 0:01:35.5]} 37. Bd1 {[%clk 0:00:09.8]} 37... Qd6
{[%clk 0:01:34.9]} 38. Kg3 {[%clk 0:00:10.2]} 38... b4 {[%clk 0:01:33.8]} 39.
Bf3 {[%clk 0:00:07.3]} 39... bxc3 {[%clk 0:01:32.7]} 40. bxc3 {[%clk 0:00:07.3]}
40... g5 {[%clk 0:01:29.4]} 41. Qxd6 {[%clk 0:00:07.1]} 41... Rxd6 {[%clk
0:01:29.9]} 42. Be2 {[%clk 0:00:08]} 42... Rc6 {[%clk 0:01:30.2]} 43. Kf3 {[%clk
0:00:08.4]} 43... Kg6 {[%clk 0:01:29.3]} 44. g4 {[%clk 0:00:08.9]} 44... f5
{[%clk 0:01:28.1]} 45. Bd1 {[%clk 0:00:09.2]} 45... fxg4+ {[%clk 0:01:23.6]} 46.
hxg4 {[%clk 0:00:10.1]} 46... h5 {[%clk 0:01:24.2]} 47. Bc2+ {[%clk 0:00:10.5]}
47... Kh6 {[%clk 0:01:24.8]} 48. gxh5 {[%clk 0:00:10.8]} 48... Kxh5 {[%clk
0:01:25.2]} 49. Ke4 {[%clk 0:00:10.8]} 49... g4 {[%clk 0:01:24.5]} 50. Bd1
{[%clk 0:00:10.6]} 50... Kh4 {[%clk 0:01:21.1]} 51. Kd5 {[%clk 0:00:11]} 51...
Rc8 {[%clk 0:01:21.5]} 52. Bf6+ {[%clk 0:00:09.8]} 52... Kh3 {[%clk 0:01:21.2]}
53. Bc2 {[%clk 0:00:10.2]} 53... Rf8 {[%clk 0:01:19.4]} 54. Bd4 {[%clk
0:00:09.1]} 54... g3 {[%clk 0:01:19.1]} 55. Kxc4 {[%clk 0:00:09.4]} 55... Rf4
{[%clk 0:01:16.3]} 56. Kd5 {[%clk 0:00:03]} 56... Rxd4+ {[%clk 0:01:15.6]} 57.
cxd4 {[%clk 0:00:03.9]} 57... g2 {[%clk 0:01:16]} 58. Bf5+ {[%clk 0:00:04.8]}
58... Kg3 {[%clk 0:01:16]} 0-1

[Event "*** Titled Tuesday Blitz"]
[Site "Chess.com"]
[Date "2020.05.05"]
[Round "3"]
[White "Vesper2018"]
[Black "Fh2411"]
[Result "1-0"]
[WhiteElo "2149"]
[BlackElo "2454"]
[TimeControl "180+1"]
[EndTime "10:29:56 PDT"]
[Termination "Vesper2018 won by checkmate"]

1. e4 {[%clk 0:02:59.9]} 1... c5 {[%clk 0:02:59.6]} 2. Nc3 {[%clk 0:02:58.9]}
2... Nc6 {[%clk 0:02:57.5]} 3. Bb5 {[%clk 0:02:58.9]} 3... Nd4 {[%clk
0:02:57.2]} 4. Bc4 {[%clk 0:02:59]} 4... g6 {[%clk 0:02:53.9]} 5. Nf3 {[%clk
0:02:54.2]} 5... Bg7 {[%clk 0:02:46.4]} 6. Nxd4 {[%clk 0:02:54.1]} 6... cxd4
{[%clk 0:02:47.3]} 7. Qf3 {[%clk 0:02:53]} 7... Nh6 {[%clk 0:02:29.8]} 8. Ne2
{[%clk 0:02:51.2]} 8... d6 {[%clk 0:01:53.7]} 9. d3 {[%clk 0:02:41.8]} 9... Bg4
{[%clk 0:01:11.5]} 10. Qg3 {[%clk 0:02:09.3]} 10... Bxe2 {[%clk 0:01:07.9]} 11.
Bb5+ {[%clk 0:02:01.4]} 11... Kf8 {[%clk 0:01:04.2]} 12. Kxe2 {[%clk 0:02:01.8]}
12... Qc8 {[%clk 0:00:50]} 13. Bc4 {[%clk 0:01:58.6]} 13... Qg4+ {[%clk
0:00:48.7]} 14. f3 {[%clk 0:01:52.2]} 14... Qxg3 {[%clk 0:00:43.5]} 15. hxg3
{[%clk 0:01:52.3]} 15... Ng8 {[%clk 0:00:43.8]} 16. Bd2 {[%clk 0:01:45.3]} 16...
h5 {[%clk 0:00:39.9]} 17. a4 {[%clk 0:01:39.2]} 17... Nf6 {[%clk 0:00:38.9]} 18.
a5 {[%clk 0:01:37.8]} 18... a6 {[%clk 0:00:39]} 19. c3 {[%clk 0:01:38]} 19...
Nd7 {[%clk 0:00:36]} 20. Bd5 {[%clk 0:01:32.1]} 20... Rb8 {[%clk 0:00:34.7]} 21.
Ra4 {[%clk 0:01:31.6]} 21... e6 {[%clk 0:00:27.9]} 22. Ba2 {[%clk 0:01:24.4]}
22... dxc3 {[%clk 0:00:19.5]} 23. bxc3 {[%clk 0:01:23.1]} 23... Ke7 {[%clk
0:00:19.5]} 24. Rb1 {[%clk 0:01:21]} 24... Rhc8 {[%clk 0:00:19.6]} 25. d4 {[%clk
0:01:20.3]} 25... Rc7 {[%clk 0:00:16.2]} 26. Rab4 {[%clk 0:01:17.8]} 26... Kd8
{[%clk 0:00:15.7]} 27. Bc4 {[%clk 0:01:14.5]} 27... Kc8 {[%clk 0:00:15.4]} 28.
Bd3 {[%clk 0:01:12.2]} 28... Bf8 {[%clk 0:00:15.6]} 29. R4b3 {[%clk 0:01:07.8]}
29... Ra8 {[%clk 0:00:15.7]} 30. f4 {[%clk 0:01:00.9]} 30... Nb8 {[%clk
0:00:15.6]} 31. Kf3 {[%clk 0:00:41.7]} 31... Nc6 {[%clk 0:00:15.8]} 32. Ra1
{[%clk 0:00:42.2]} 32... Kd7 {[%clk 0:00:15.3]} 33. g4 {[%clk 0:00:42]} 33...
hxg4+ {[%clk 0:00:14.3]} 34. Kxg4 {[%clk 0:00:42.5]} 34... Be7 {[%clk
0:00:12.8]} 35. Kf3 {[%clk 0:00:42.2]} 35... Rh8 {[%clk 0:00:12.3]} 36. d5
{[%clk 0:00:37.5]} 36... exd5 {[%clk 0:00:11.9]} 37. exd5 {[%clk 0:00:37.9]}
37... Na7 {[%clk 0:00:09.3]} 38. c4 {[%clk 0:00:34.8]} 38... Bf6 {[%clk
0:00:08.2]} 39. Rab1 {[%clk 0:00:34.8]} 39... Kc8 {[%clk 0:00:07.3]} 40. Be3
{[%clk 0:00:34.5]} 40... Kb8 {[%clk 0:00:07.7]} 41. Rb6 {[%clk 0:00:33.7]} 41...
Nc8 {[%clk 0:00:07.8]} 42. R6b3 {[%clk 0:00:28.4]} 42... Re8 {[%clk 0:00:07.9]}
43. c5 {[%clk 0:00:26.5]} 43... dxc5 {[%clk 0:00:08.8]} 44. Bxa6 {[%clk
0:00:26.5]} 44... c4 {[%clk 0:00:06.9]} 45. Rxb7+ {[%clk 0:00:25.5]} 45... Rxb7
{[%clk 0:00:07.8]} 46. Rxb7+ {[%clk 0:00:25.5]} 46... Ka8 {[%clk 0:00:08.7]} 47.
Rc7 {[%clk 0:00:25]} 47... Nd6 {[%clk 0:00:08.2]} 48. Bxc4 {[%clk 0:00:22.4]}
48... Nxc4 {[%clk 0:00:08.2]} 49. Rxc4 {[%clk 0:00:22.4]} 49... Kb7 {[%clk
0:00:08.4]} 50. Rc6 {[%clk 0:00:20.2]} 50... Bd8 {[%clk 0:00:07.6]} 51. a6+
{[%clk 0:00:20.1]} 51... Ka8 {[%clk 0:00:08.1]} 52. Rc8# {[%clk 0:00:20.2]} 1-0

[Event "*** Titled Tuesday Blitz"]
[Site "Chess.com"]
[Date "2020.05.05"]
[Round "3"]
[White "Riptide27"]
[Black "ahachess"]
[Result "1-0"]
[WhiteElo "2538"]
[BlackElo "2342"]
[TimeControl "180+1"]
[EndTime "10:29:57 PDT"]
[Termination "Riptide27 won on time"]

1. d4 {[%clk 0:03:00.9]} 1... Nf6 {[%clk 0:02:59.2]} 2. c4 {[%clk 0:03:00.2]}
2... g6 {[%clk 0:02:59.4]} 3. Nc3 {[%clk 0:02:59.5]} 3... Bg7 {[%clk 0:02:59.7]}
4. e4 {[%clk 0:02:58.8]} 4... d6 {[%clk 0:03:00.1]} 5. Be2 {[%clk 0:02:58.6]}
5... O-O {[%clk 0:03:00]} 6. Be3 {[%clk 0:02:58.2]} 6... e5 {[%clk 0:02:27.1]}
7. d5 {[%clk 0:02:55.6]} 7... a5 {[%clk 0:02:23.6]} 8. g4 {[%clk 0:02:54.4]}
8... Na6 {[%clk 0:02:22.3]} 9. h4 {[%clk 0:02:50.8]} 9... Nc5 {[%clk 0:02:13.7]}
10. f3 {[%clk 0:02:48.6]} 10... Nfd7 {[%clk 0:02:04.9]} 11. h5 {[%clk
0:02:46.4]} 11... Bf6 {[%clk 0:01:54]} 12. Qd2 {[%clk 0:02:38.3]} 12... Bh4+
{[%clk 0:01:45.4]} 13. Kd1 {[%clk 0:02:37]} 13... f5 {[%clk 0:01:33.1]} 14. hxg6
{[%clk 0:02:09.3]} 14... f4 {[%clk 0:01:27.6]} 15. gxh7+ {[%clk 0:02:07]} 15...
Kh8 {[%clk 0:01:21.7]} 16. Bxc5 {[%clk 0:02:04]} 16... Nxc5 {[%clk 0:01:21.3]}
17. Bf1 {[%clk 0:01:54.7]} 17... Rf7 {[%clk 0:01:15]} 18. Kc2 {[%clk 0:01:53.1]}
18... a4 {[%clk 0:01:07]} 19. Rc1 {[%clk 0:01:46.2]} 19... Bd7 {[%clk
0:00:54.1]} 20. Kb1 {[%clk 0:01:45.6]} 20... Qf6 {[%clk 0:00:46.2]} 21. Rc2
{[%clk 0:01:43]} 21... Rxh7 {[%clk 0:00:40.9]} 22. Qd1 {[%clk 0:01:38.3]} 22...
Rg8 {[%clk 0:00:38.5]} 23. Rch2 {[%clk 0:01:36.3]} 23... Rgg7 {[%clk 0:00:39]}
24. Nge2 {[%clk 0:01:31.8]} 24... Bg5 {[%clk 0:00:37.4]} 25. Nc1 {[%clk
0:01:28.7]} 25... Rxh2 {[%clk 0:00:37.3]} 26. Rxh2+ {[%clk 0:01:27.9]} 26... Rh7
{[%clk 0:00:36.3]} 27. Qc2 {[%clk 0:01:24.3]} 27... Rxh2 {[%clk 0:00:35.7]} 28.
Qxh2+ {[%clk 0:01:23.1]} 28... Qh6 {[%clk 0:00:35.3]} 29. Qxh6+ {[%clk
0:01:21.7]} 29... Bxh6 {[%clk 0:00:34.4]} 30. Nd3 {[%clk 0:01:22.5]} 30... Nxd3
{[%clk 0:00:33.7]} 31. Bxd3 {[%clk 0:01:23.4]} 31... Bg5 {[%clk 0:00:27.9]} 32.
a3 {[%clk 0:01:21.3]} 32... Bh4 {[%clk 0:00:27]} 33. Bc2 {[%clk 0:01:21.2]}
33... Be1 {[%clk 0:00:26.1]} 34. Bxa4 {[%clk 0:01:18.8]} 34... Bxc3 {[%clk
0:00:24.7]} 35. Bxd7 {[%clk 0:01:19.3]} 35... Bd4 {[%clk 0:00:23.8]} 36. g5
{[%clk 0:01:18.9]} 36... Kg7 {[%clk 0:00:20.2]} 37. Bc8 {[%clk 0:01:19.3]} 37...
b6 {[%clk 0:00:19.6]} 38. Bf5 {[%clk 0:01:19.9]} 38... Bf2 {[%clk 0:00:18.1]}
39. Kc2 {[%clk 0:01:20.2]} 39... Bh4 {[%clk 0:00:16.8]} 40. g6 {[%clk
0:01:17.4]} 40... Bf2 {[%clk 0:00:16]} 41. Kb3 {[%clk 0:01:17.9]} 41... Bd4
{[%clk 0:00:15.5]} 42. Ka2 {[%clk 0:01:17.9]} 42... Bc5 {[%clk 0:00:14.4]} 43.
b4 {[%clk 0:01:18.3]} 43... Bd4 {[%clk 0:00:14.7]} 44. Kb3 {[%clk 0:01:19.2]}
44... Kf6 {[%clk 0:00:14.1]} 45. Ka4 {[%clk 0:01:19]} 45... Bb2 {[%clk
0:00:13.8]} 46. Kb3 {[%clk 0:01:18.8]} 46... Bc1 {[%clk 0:00:11.5]} 47. Ka2
{[%clk 0:01:14.1]} 47... Bd2 {[%clk 0:00:12.4]} 48. Kb3 {[%clk 0:01:13.4]} 48...
Bc1 {[%clk 0:00:12.7]} 49. c5 {[%clk 0:01:13.2]} 49... dxc5 {[%clk 0:00:10.4]}
50. bxc5 {[%clk 0:01:14.1]} 50... bxc5 {[%clk 0:00:09.8]} 51. a4 {[%clk
0:01:14.2]} 51... Bd2 {[%clk 0:00:09.1]} 52. Kc4 {[%clk 0:01:15.1]} 52... Bb4
{[%clk 0:00:08.7]} 53. Kb5 {[%clk 0:01:15.2]} 53... Kg7 {[%clk 0:00:06.3]} 54.
a5 {[%clk 0:01:15]} 1-0

[Event "*** Titled Tuesday Blitz"]
[Site "Chess.com"]
[Date "2020.05.05"]
[Round "3"]
[White "TigrVShlyape"]
[Black "Vamostodorecto"]
[Result "1-0"]
[WhiteElo "2815"]
[BlackElo "2534"]
[TimeControl "180+1"]
[EndTime "10:29:58 PDT"]
[Termination "TigrVShlyape won on time"]

1. d4 {[%clk 0:03:00.9]} 1... Nf6 {[%clk 0:02:57.6]} 2. Nf3 {[%clk 0:02:59.3]}
2... g6 {[%clk 0:02:58]} 3. Bf4 {[%clk 0:02:58]} 3... Bg7 {[%clk 0:02:58]} 4. c3
{[%clk 0:02:57.4]} 4... O-O {[%clk 0:02:58.2]} 5. Nbd2 {[%clk 0:02:55]} 5... d6
{[%clk 0:02:58.6]} 6. h3 {[%clk 0:02:54.4]} 6... Nbd7 {[%clk 0:02:47.6]} 7. e4
{[%clk 0:02:52.4]} 7... Qe8 {[%clk 0:02:38.3]} 8. Bh2 {[%clk 0:02:42.3]} 8... e5
{[%clk 0:02:36.9]} 9. dxe5 {[%clk 0:02:39.8]} 9... Nxe5 {[%clk 0:02:29.1]} 10.
Nxe5 {[%clk 0:02:36.4]} 10... dxe5 {[%clk 0:02:30]} 11. Be2 {[%clk 0:02:31.3]}
11... Qe7 {[%clk 0:02:26.5]} 12. O-O {[%clk 0:02:28.8]} 12... Rd8 {[%clk
0:02:18.1]} 13. Qc2 {[%clk 0:02:27.5]} 13... Bh6 {[%clk 0:02:02.8]} 14. Nc4
{[%clk 0:02:25.1]} 14... Bf4 {[%clk 0:01:23.9]} 15. Bxf4 {[%clk 0:02:07.3]}
15... exf4 {[%clk 0:01:24.8]} 16. e5 {[%clk 0:02:06.5]} 16... Nd5 {[%clk
0:01:21.4]} 17. Bf3 {[%clk 0:02:02.4]} 17... Bf5 {[%clk 0:00:42.7]} 18. Qb3
{[%clk 0:01:56.2]} 18... Rab8 {[%clk 0:00:33.3]} 19. Rfe1 {[%clk 0:01:51.7]}
19... Kg7 {[%clk 0:00:32.1]} 20. a4 {[%clk 0:01:40.4]} 20... Nb6 {[%clk
0:00:30.3]} 21. a5 {[%clk 0:01:34.3]} 21... Nxc4 {[%clk 0:00:28.1]} 22. Qxc4
{[%clk 0:01:33.9]} 22... g5 {[%clk 0:00:25.6]} 23. a6 {[%clk 0:01:01.5]} 23...
Bd3 {[%clk 0:00:24.5]} 24. Qa4 {[%clk 0:00:52.9]} 24... bxa6 {[%clk 0:00:23.8]}
25. b4 {[%clk 0:00:49]} 25... Kg6 {[%clk 0:00:17.1]} 26. Qc6+ {[%clk 0:00:47.5]}
26... Qe6 {[%clk 0:00:07]} 27. Qc5 {[%clk 0:00:45.1]} 27... h5 {[%clk
0:00:05.6]} 28. Rad1 {[%clk 0:00:41.6]} 28... Bf5 {[%clk 0:00:05]} 29. Bd5
{[%clk 0:00:37]} 29... Qe8 {[%clk 0:00:02.6]} 30. Qxc7 {[%clk 0:00:28.9]} 30...
g4 {[%clk 0:00:02.9]} 31. h4 {[%clk 0:00:27.3]} 31... Rd7 {[%clk 0:00:02.2]} 32.
Qc6+ {[%clk 0:00:26.5]} 32... Be6 {[%clk 0:00:01.2]} 33. Bxe6 {[%clk 0:00:24.3]}
33... Rxd1 {[%clk 0:00:02.1]} 34. Qe4+ {[%clk 0:00:23.6]} 34... Kg7 {[%clk
0:00:01.5]} 35. Rxd1 {[%clk 0:00:23.8]} 35... Qxe6 {[%clk 0:00:01.8]} 36. Qxf4
{[%clk 0:00:23.9]} 36... Re8 {[%clk 0:00:01]} 37. Qg5+ {[%clk 0:00:21.7]} 37...
Qg6 {[%clk 0:00:01.9]} 38. Qxg6+ {[%clk 0:00:20.8]} 38... Kxg6 {[%clk
0:00:02.8]} 39. Rd6+ {[%clk 0:00:20.9]} 39... Kf5 {[%clk 0:00:02.7]} 40. Rxa6
{[%clk 0:00:21]} 40... Rxe5 {[%clk 0:00:02.2]} 41. Rxa7 {[%clk 0:00:21]} 41...
Re1+ {[%clk 0:00:02.7]} 42. Kh2 {[%clk 0:00:20.9]} 42... f6 {[%clk 0:00:03.6]}
43. Rc7 {[%clk 0:00:19.7]} 43... Re2 {[%clk 0:00:03.7]} 44. Kg3 {[%clk
0:00:19.4]} 44... Rb2 {[%clk 0:00:03.4]} 45. f3 {[%clk 0:00:19.4]} 1-0